Cogmind - Beta 16 @@@ ROGUE MODE // 2025.11.04 @ 21:26:53 Player: Mozco Result: Destroyed by G-50 Soldier with Heavy Laser Performance ------------- Evolutions (4) 2000 Regions Visited (7) 1400 Robots Destroyed (171) 855 Value Destroyed (5933) 5933 Prototype IDs (16) 320 Alien Tech Used (0) 0 Bonus (882) 882 TOTAL SCORE: 11390 Bonus ------- High Alert Combat Kills 882 Cogmind --------- Core Integrity 0/850 Matter 236/300 Energy 113/210 System Corruption 2% Temperature Cool (9) Movement Treading (240) Ox1 Location -6/Factory Parts ------- > --- POWER (2) -------- Light Angular Momentum Engine Light Fission Core > --- PROPULSION (6) --- Centrium Heavy Treads Centrium Heavy Treads Improved Carbon-fiber Leg Flexi-carbon Leg > --- UTILITY (4) ------ Large Storage Unit Active Cooling Armor > --- WEAPON (3) ------- Plasma Rifle Cooled Phase Gun Cooled Phase Gun > --- INVENTORY (15) --- Centrium Heavy Treads Centrium Heavy Treads Centrium Heavy Treads Insulated Plating Experimental Thermal Shield System Restoration Module Heavy Beamcaster Advanced EMP Blaster Heavy Missile Launcher Hellfire Missile Launcher Hellfire Missile Launcher Peak State ------------ > --- POWER ------------ Light Angular Momentum Engine Light Fission Core > --- PROPULSION ------- Centrium Heavy Treads Centrium Heavy Treads Improved Carbon-fiber Leg Flexi-carbon Leg > --- UTILITY ---------- Large Storage Unit Active Cooling Armor > --- WEAPON ----------- Plasma Rifle Cooled Phase Gun Cooled Phase Gun > --- INVENTORY -------- Centrium Heavy Treads Centrium Heavy Treads Centrium Heavy Treads Insulated Plating Experimental Thermal Shield System Restoration Module Heavy Beamcaster Advanced EMP Blaster Heavy Missile Launcher Hellfire Missile Launcher Hellfire Missile Launcher [Rating: 114] Favorites ----------- Power Cold Fusion Reactor Engine Heavy Ion Engine Power Core Light Nuclear Core Reactor Cold Fusion Reactor Propulsion Flexi-carbon Leg Treads Heavy Treads Leg Flexi-carbon Leg Wheel Compact Wheel Hover Unit Hover Unit Utility Large Storage Unit Device Advanced Heat Sink Storage Large Storage Unit Processor Core Analyzer Hackware Hacking Suite Protection Improved Light Armor Plating Weapon Heavy Beamcaster Energy Gun Heavy Beamcaster Energy Cannon EM Pulse Cannon Ballistic Gun Improved Assault Rifle Launcher Mini Grenade Launcher Impact Weapon Thunder Hammer Build | -11 -10 -9 -8 -7 -6 -6 -6 ------- Run | Yrd Mat Mat Mat Fac Fac Was Fac Slots Evolved 8 | . . 2 2 2 2 . . Power 1 | . . . . . 1 . . Propulsion 4 | . . 2 1 1 . . . Utility 2 | . . . 1 1 . . . Weapon 1 | . . . . . 1 . . Parts Attached 149 | 7 9 16 27 5 36 7 42 Power 20 | 2 1 1 2 1 4 1 8 Engine 12 | 2 1 1 1 1 1 1 4 Core 5 | . . . 1 . 1 . 3 Reactor 3 | . . . . . 2 . 1 Propulsion 53 | 2 1 7 12 . 13 1 17 Treads 3 | . . . . . . 1 2 Leg 32 | 2 1 . 1 . 13 . 15 Wheel 8 | . . . 8 . . . . Hover 10 | . . 7 3 . . . . Flight . | . . . . . . . . Utility 31 | 1 2 3 6 1 9 2 7 Device 12 | . 1 . 2 . 4 2 3 Storage 5 | 1 1 1 . . 1 . 1 Processor 2 | . . . 1 1 . . . Hackware 2 | . . 1 1 . . . . Protection 10 | . . 1 2 . 4 . 3 Artifact . | . . . . . . . . Weapon 45 | 2 5 5 7 3 10 3 10 Energy Gun 29 | 1 4 2 2 3 8 2 7 Energy Cannon 5 | . . . 4 . 1 . . Ballistic Gun 4 | 1 . 2 . . . . 1 Ballistic Cannon . | . . . . . . . . Launcher 6 | . 1 1 1 . 1 . 2 Special Weapon . | . . . . . . . . Impact Weapon 1 | . . . . . . 1 . Slashing Weapon . | . . . . . . . . Piercing Weapon . | . . . . . . . . Special Melee Weapon . | . . . . . . . . Unidentified Prototypes 14 | . . 2 . 1 2 1 8 Corrupted Parts 4 | . . . 3 . . . 1 System Corruption 15 | . . . 14 . . . 1 Parts Lost 52 | . . 3 13 . 13 . 23 Power 5 | . . . 1 . 1 . 3 Propulsion 27 | . . 2 7 . 7 . 11 Utility 8 | . . . 1 . 3 . 4 Weapon 12 | . . 1 4 . 2 . 5 Highest Loss Streak 21 | . . 2 3 . 2 . 21 To Critical Strikes 1 | . . . . . . . 1 Average Backups 11 | . 5 9 9 12 14 14 13 Power 1 | . 1 . . . 1 1 1 Propulsion 2 | . 2 2 1 2 1 2 2 Utility 4 | . 1 4 4 4 6 5 5 Weapon 3 | . . 2 2 4 4 5 4 Tool/Special . | . . . . . . . . Unused Backups 18 | . 1 1 1 . 4 3 8 Power 2 | . . . . . 2 . . Propulsion 6 | . 1 1 . . . . 4 Utility 4 | . . . . . 1 . 3 Weapon 5 | . . . . . 1 3 1 Tool/Special 1 | . . . 1 . . . . Average Slot Usage (%) 90 | . 92 89 84 84 94 91 90 Engine 6 | . 14 11 6 . 2 3 6 Core 1 | . . . 2 6 1 . 2 Reactor 2 | . . . . . 7 6 1 Treads 1 | . . . . . . 4 4 Leg 20 | . 28 9 3 . 28 28 27 Wheel 5 | . . . 13 30 6 . . Hover 5 | . . 24 15 2 . . . Device 6 | . 7 5 2 . 5 10 9 Storage 7 | . 14 11 9 7 6 6 6 Processor 5 | . . . 8 13 6 6 5 Protection 4 | . . 3 5 6 5 2 2 Energy Gun 16 | . 23 13 5 13 19 20 18 Ballistic Gun 1 | . 3 7 1 . . . . Peak Build Rating 114 | 6 12 18 25 30 69 79 114 Average Rating 44 | 4 8 14 19 26 58 72 75 On Entrance 28 | . 6 12 16 19 29 65 77 Avg Prop Armor Cover (%) 7 | . . . 7 4 2 11 10 Naked Turns . | . . . . . . . . Heaviest Build 84 | 14 32 32 32 40 69 62 84 Greatest Support 160 | 20 20 25 64 64 111 111 160 Greatest Overweight (x) 3 | 1 1 1 3 . 2 . 1 Average Overweight (x) . | . . . . . . . . Largest Inventory Capacity 15 | 8 15 15 10 15 15 15 15 Average Capacity 13 | 7 9 10 10 15 15 15 15 Most Carried 15 | 1 11 11 10 15 15 15 15 Average Carried 11 | . 6 9 9 12 14 14 14 Final Capacity 15 | 8 15 10 10 15 15 15 15 Final Carried 15 | 1 11 10 9 15 15 15 14 Class Distribution -------------------- 32% | Scavenger-Mutant 31% | Scavenger-Gunner 19% | Scavenger-Tank 15% | Mutant Dominant Class ---------------- Mutant | -10/Materials Scavenger-Mutant | -9/Materials Scavenger-Mutant | -8/Materials Mutant | -7/Factory Scavenger-Gunner | -6/Factory Scavenger-Tank | -6/Waste Scavenger-Tank | -6/Factory Resources | -11 -10 -9 -8 -7 -6 -6 -6 ----------- Run | Yrd Mat Mat Mat Fac Fac Was Fac Matter Collected 2408 | 229 170 296 410 60 452 75 716 Remotely . | . . . . . . . . Salvage Created 7146 | . 398 591 1253 60 2102 . 2742 Parts 312 | . 29 40 72 2 65 . 104 Haulers Intercepted 9 | . . 3 1 . 3 . 2 Recyclers Shooed 17 | . 1 . . . 5 . 11 Parts Field Recycled . | . . . . . . . . Retrieved Matter . | . . . . . . . . Parts Self-Destructed . | . . . . . . . . Prevented . | . . . . . . . . Parts Restored . | . . . . . . . . Kills | -11 -10 -9 -8 -7 -6 -6 -6 ------- Run | Yrd Mat Mat Mat Fac Fac Was Fac Combat Hostiles Destroyed 120 | . 12 13 22 1 25 . 47 Guns 72 | . 10 11 3 1 21 . 26 Cannons 7 | . . . 7 . . . . AOE 32 | . 2 2 11 . 2 . 15 Classes Destroyed 18 | . 5 4 4 . 2 . 3 Worker 8 | . . 1 4 . 2 . 1 Builder 9 | . . . 4 . 2 . 3 Tunneler 1 | . . . 1 . . . . Hauler 9 | . . 3 1 . 3 . 2 Recycler 10 | . 1 1 2 . 4 . 2 Mechanic 5 | . . 1 . . . . 4 Operator 2 | . 1 . 1 . . . . Watcher 7 | . 2 3 2 . . . . Swarmer 25 | . 6 9 4 . 3 . 3 Grunt 57 | . 6 3 13 . 11 . 24 Brawler 3 | . . . 1 . . . 2 Duelist 1 | . . . . . 1 . . Protector 1 | . . . . . . . 1 Sentry 9 | . . 1 3 1 3 . 1 Specialist 3 | . . . . . . . 3 Hunter 14 | . . . 1 . 4 . 9 Programmer 6 | . . . . . 3 . 3 Heavy 1 | . . . . . . . 1 Best Kill Streak 14 | . 4 5 11 1 7 . 14 Combat Bots Only 13 | . 4 4 7 1 4 . 13 Max Kills in Single Turn 5 | . 3 1 4 1 3 . 5 Gunslinging 1 | . . . . . . . 1 Exploded 3 | . 2 1 2 . 1 . 3 Melee . | . . . . . . . . Uniques/NPCs Destroyed . | . . . . . . . . Combat | -11 -10 -9 -8 -7 -6 -6 -6 -------- Run | Yrd Mat Mat Mat Fac Fac Was Fac Hostile Shots Fired 1031 | . 39 64 135 33 249 . 511 Missed 319 | . 10 22 39 15 70 . 163 Hits 712 | . 29 42 96 18 179 . 348 Melee 2 | . . . . . . . 2 Projectile 710 | . 29 42 96 18 179 . 346 AOE 1 | . . . . 1 . . . Critical Strikes 23 | . 2 . 4 . 9 . 8 Actively Blocked 1 | . . . . . 1 . . Part Disruptions 1 | . . . . . . . 1 Damage Taken 10731 | . 324 391 1491 208 2663 . 5654 Core 1417 | . 87 53 305 120 210 . 642 Absorbed by Shields 35 | . . . 35 . . . . Redirected to Shielding 94 | . . . . . 94 . . Ignored by Resistances 137 | . . . . . 82 . 55 Regen/Repaired (Parts) 30 | . . . 30 . . . . Core Remaining (%) 75 | 100 65 86 44 82 . . . Volleys Fired 364 | . 33 47 69 3 110 . 102 Largest 3 | . 2 2 2 2 3 . 3 Hottest 237 | . 130 130 128 131 223 . 237 Shots Fired 842 | . 66 91 87 6 313 . 279 Gun 765 | . 65 88 30 6 309 . 267 Cannon 45 | . . . 45 . . . . Launcher 32 | . 1 3 12 . 4 . 12 Special . | . . . . . . . . Kinetic 43 | . 8 33 2 . . . . Thermal 721 | . 57 50 32 6 309 . 267 Explosive 20 | . 1 3 8 . . . 8 Electromagnetic 58 | . . 5 45 . 4 . 4 Robot Hit Streak 12 | . 8 7 10 6 11 . 12 Robot Miss Streak 5 | . 5 2 4 2 5 . 5 Penetration Max . | . . . . . . . . Secondary Targets 15 | . . 4 . . 2 . 9 Max Gunslinging Chain 1 | . . 1 . . 1 . 1 Shots Hit Robots 543 | . 45 52 53 5 207 . 181 Core Hits 345 | . 25 26 52 6 110 . 126 Critical Kills . | . . . . . . . . Critical Parts Destroyed . | . . . . . . . . Critical Strikes 30 | . 2 . 2 1 5 . 20 Burn 28 | . 2 . . 1 5 . 20 Corrupt 2 | . . . 2 . . . . Melee Attacks . | . . . . . . . . Impact . | . . . . . . . . Slashing . | . . . . . . . . Piercing . | . . . . . . . . Sneak Attacks . | . . . . . . . . Combat Hostiles . | . . . . . . . . Follow-up Attacks . | . . . . . . . . Damage Inflicted 17679 | . 748 1027 2577 90 4188 . 9049 Guns 10122 | . 605 804 290 90 3930 . 4403 Cannons 830 | . . . 830 . . . . Explosions 6660 | . 141 223 1447 . 224 . 4625 Melee . | . . . . . . . . Ramming 67 | . 2 . 10 . 34 . 21 Kinetic 478 | . 86 359 33 . . . . Thermal 11548 | . 519 453 761 90 3930 . 5795 Explosive 4002 | . 141 184 821 . . . 2856 Electromagnetic 1584 | . . 31 952 . 224 . 377 Impact . | . . . . . . . . Slashing . | . . . . . . . . Piercing . | . . . . . . . . Highest Corruption 15 | . . . 15 . 2 2 2 Average Corruption 2 | . . . 13 . 1 1 1 Corruption Purged 2 | . . . . . . 2 . Corruption Blocked . | . . . . . . . . Effects 12 | . . . 3 . 7 1 1 Message Errors 1 | . . . 1 . . . . Matter Fused 4 | . . . 2 . 2 . . Heat Flow Errors 2 | . . . . . . 1 1 Energy Discharges 3 | . . . . . 3 . . Data Loss (major) 1 | . . . . . 1 . . Alerts 1 | . . . . . 1 . . Overload Shots 6 | . . . . . . . 6 Overflow Damage 436 | . 4 . 60 . . . 372 Projectiles 19 | . . . 19 . . . . Explosions 417 | . 4 . 41 . . . 372 Melee . | . . . . . . . . Knockbacks . | . . . . . . . . Impact . | . . . . . . . . Kinetic . | . . . . . . . . Secondary . | . . . . . . . . Self-Inflicted Damage 453 | . . . 208 . . . 245 Shots 11 | . . . 6 . . . 5 Rammed 1 | . . . 1 . . . . Targets Rammed 7 | . 1 . 1 . 3 . 2 Kicked 6 | . 1 . . . 3 . 2 Crushed . | . . . . . . . . Highest Temperature 521 | . 168 166 296 205 332 54 521 Average Temperature 101 | . 41 48 82 108 115 28 129 Received Heat Transfer 2729 | . 168 24 655 48 700 . 1134 Effects 11 | . . . 1 . 1 . 9 Shutdowns 3 | . . . . . . . 3 Energy Bleed 3 | . . . 1 . 1 . 1 Interference 4 | . . . . . . . 4 Matter Decay 1 | . . . . . . . 1 Siege Activations . | . . . . . . . . Martial Activations . | . . . . . . . . Shielding Activations . | . . . . . . . . Robots Disrupted . | . . . . . . . . Combat Hostiles . | . . . . . . . . Robots Corrupted 2 | . . . 1 . . . 1 Combat Hostiles 2 | . . . 1 . . . 1 Parts Fried 9 | . . . 6 . . . 3 Impact Corruptions . | . . . . . . . . Robots Melted 10 | . . . . . 5 . 5 Combat Hostiles 7 | . . . . . 2 . 5 Parts Melted 47 | . 2 3 . . 21 . 21 Heat Transferred 22397 | . 1482 1051 964 225 8342 . 10333 Parts Sabotaged . | . . . . . . . . Parts Stolen . | . . . . . . . . Parts Stripped . | . . . . . . . . Power Chain Reactions 5 | . . 1 3 . . . 1 Alert | -11 -10 -9 -8 -7 -6 -6 -6 ------- Run | Yrd Mat Mat Mat Fac Fac Was Fac Maximum Alert Level 4 | . . . 2 1 1 . 4 Low Security (%) 59 | 100 100 100 33 23 54 100 38 Level 1 28 | . . . 47 76 45 . 20 Level 2 5 | . . . 19 . . . 14 Level 3 5 | . . . . . . . 25 Level 4 . | . . . . . . . . Level 5 . | . . . . . . . . High Security . | . . . . . . . . Max Security . | . . . . . . . . Peak Influence 1101 | . 199 151 436 311 264 92 1101 Initial 111 | . . 70 56 111 94 92 . Average 203 | . 69 49 252 226 175 33 395 Influence Increases 4288 | . 368 451 764 252 786 . 1667 Destroy 0b10 Robot/C 2380 | . 240 260 440 20 500 . 920 Destroy 0b10 Robot/NC 260 | . 20 45 75 . 55 . 65 Destroy Leader 510 | . 54 72 96 10 114 . 164 Successful Hack 145 | . 18 24 16 22 25 . 40 Select Force Hacks 60 | . 30 30 . . . . . Disable Machine 180 | . . . 45 . 15 . 120 Anti-Garrison Action 400 | . . . . 200 . . 200 Destroy Structure 173 | . 6 20 77 . 2 . 68 Partial Spotted 15 | . . . . . . . 15 Lose Combat Pursuer 165 | . . . 15 . 75 . 75 Influence Decreases 3187 | . 201 483 653 305 715 264 566 Entered New Map 582 | . . 97 79 135 99 172 . Time Decay 1821 | . 201 242 294 170 486 92 336 Lost Part 520 | . . 30 130 . 130 . 230 Purge Threat 264 | . . 114 150 . . . . Squads Dispatched 30 | . 2 2 3 2 8 . 13 Investigation 8 | . 1 1 1 2 2 . 1 Extermination 4 | . . . . . 3 . 1 Reinforcement 14 | . 1 1 2 . 3 . 7 Assault 3 | . . . . . . . 3 Garrison 1 | . . . . . . . 1 Intercept . | . . . . . . . . Searches Triggered . | . . . . . . . . Construction Impeded 3 | . . . . . 1 . 2 Haulers Reinforced 4 | . . . . . 2 . 2 Active Scanning Responses . | . . . . . . . . Cargo Convoy Interrupts 1 | . . . . . . . 1 Stealth | -11 -10 -9 -8 -7 -6 -6 -6 --------- Run | Yrd Mat Mat Mat Fac Fac Was Fac Distress Signals 8 | . 2 1 2 . 1 . 2 Communications Jammed . | . . . . . . . . Distress Signals . | . . . . . . . . Times Spotted 178 | . 16 21 33 1 36 . 71 Peak Tracking Total 10 | . 4 4 6 1 4 . 10 Tactical Retreats 7 | . . . 1 . 2 . 4 Traps | -11 -10 -9 -8 -7 -6 -6 -6 ------- Run | Yrd Mat Mat Mat Fac Fac Was Fac Traps Triggered 6 | . . 1 1 . 2 . 2 Indirectly . | . . . . . . . . Trap Hack Attempts . | . . . . . . . . Triggered . | . . . . . . . . Disarmed . | . . . . . . . . Reprogrammed . | . . . . . . . . Reused . | . . . . . . . . Traps Extracted . | . . . . . . . . Installed . | . . . . . . . . Triggered . | . . . . . . . . Machines | -11 -10 -9 -8 -7 -6 -6 -6 ---------- Run | Yrd Mat Mat Mat Fac Fac Was Fac Machines Disabled 12 | . . . 3 . 1 . 8 Max in Single Turn 2 | . . . 1 . 1 . 2 Garrison Access 2 | . . . . 1 . . 1 Machines Repaired . | . . . . . . . . Machines Dismantled . | . . . . . . . . Machines Sabotaged . | . . . . . . . . Overloaded Fab Kills . | . . . . . . . . Hacking | -11 -10 -9 -8 -7 -6 -6 -6 --------- Run | Yrd Mat Mat Mat Fac Fac Was Fac Machines Accessed 31 | . 4 5 6 5 6 . 5 Terminals 16 | . 3 2 4 2 3 . 2 Fabricators 1 | . . . . . 1 . . Repair Stations 3 | . . 1 1 . 1 . . Recycling Units 4 | . 1 1 . 1 1 . . Scanalyzers 5 | . . 1 1 1 . . 2 Garrison Access 2 | . . . . 1 . . 1 Total Hacks 94 | . 14 21 17 13 21 . 8 Successful 46 | . 6 13 11 4 8 . 4 Failed 47 | . 8 7 6 9 13 . 4 Catastrophic 7 | . . . 1 3 2 . 1 Database Lockouts 1 | . . 1 . . . . . Manual 47 | . 14 13 8 3 7 . 2 Terminals 51 | . 13 14 9 4 8 . 3 Fabricators 5 | . . . . . 5 . . Repair Stations 8 | . . 2 3 . 3 . . Recycling Units 12 | . 1 3 . 3 5 . . Scanalyzers 14 | . . 2 5 4 . . 3 Garrison Access 4 | . . . . 2 . . 2 Terminal Hacks 14 | . 2 7 2 1 1 . 1 Part Schematic 1 | . . . . . 1 . . Robot Analysis 4 | . 2 2 . . . . . Prototype ID Bank 1 | . . 1 . . . . . Unreport Threat 3 | . . 2 1 . . . . Locate Traps 1 | . . 1 . . . . . Recall Investigation 1 | . . . 1 . . . . Hauler Manifests 1 | . . . . 1 . . . Registered Components 2 | . . 1 . . . . 1 Fabricator Hacks 3 | . . . . . 3 . . Network Status 1 | . . . . . 1 . . Load Schematic 1 | . . . . . 1 . . Build 1 | . . . . . 1 . . Repair Station Hacks 4 | . . 1 2 . 1 . . Scan Component 3 | . . 1 1 . 1 . . Repair 1 | . . . 1 . . . . Recycling Unit Hacks 2 | . . 1 . . 1 . . Report Inventory 2 | . . 1 . . 1 . . Scanalyzer 10 | . . 1 5 2 . . 2 Insert Component 5 | . . 1 2 1 . . 1 Analyze 4 | . . . 2 1 . . 1 Retrieve Study 1 | . . . 1 . . . . Garrison Access Hacks . | . . . . . . . . Unauthorized Hacks 13 | . 4 3 2 1 2 . 1 Terminals 8 | . 3 2 2 . 1 . . Botnet 8 | . 3 2 2 . 1 . . Fabricators . | . . . . . . . . Repair Stations . | . . . . . . . . Recycling Units 3 | . 1 1 . . 1 . . Mask 1 | . . . . . 1 . . Tunnel 2 | . 1 1 . . . . . Scanalyzers . | . . . . . . . . Garrison Access 2 | . . . . 1 . . 1 Jam 2 | . . . . 1 . . 1 Data Cores Recovered . | . . . . . . . . Used . | . . . . . . . . Hacking Detections 28 | . 3 4 6 5 6 . 4 Full Trace Events 3 | . . . . 1 2 . . Feedback Events . | . . . . . . . . Feedback Blocked . | . . . . . . . . Robot Schematics Acquired . | . . . . . . . . Robots Built . | . . . . . . . . Authchips . | . . . . . . . . Time . | . . . . . . . . Total Robot Build Rating . | . . . . . . . . Part Schematics Acquired 5 | . . . 2 1 1 . 1 Parts Built . | . . . . . . . . Authchips . | . . . . . . . . Time 106 | . . . . . 106 . . Total Part Build Rating . | . . . . . . . . Part Studies Acquired 1 | . . . 1 . . . . Parts Repaired 1 | . . . 1 . . . . Time 32 | . . . 32 . . . . Parts Recycled . | . . . . . . . . Recycled Matter . | . . . . . . . . Retrieved Matter . | . . . . . . . . Retrieved Components . | . . . . . . . . Parts Scanalyzed 4 | . . . 2 1 . . 1 Part Schematics Acquired 4 | . . . 2 1 . . 1 Parts Damaged . | . . . . . . . . Bothacking | -11 -10 -9 -8 -7 -6 -6 -6 ------------ Run | Yrd Mat Mat Mat Fac Fac Was Fac Used RIF Installer . | . . . . . . . . Robots Hacked . | . . . . . . . . Non-combat . | . . . . . . . . Combat . | . . . . . . . . Robot Hacks Applied . | . . . . . . . . Relay Couplers Released . | . . . . . . . . Fabnet Peak Effective % . | . . . . . . . . Robots Rewired . | . . . . . . . . Allies Hacked . | . . . . . . . . Hacks Repelled . | . . . . . . . . Allies | -11 -10 -9 -8 -7 -6 -6 -6 -------- Run | Yrd Mat Mat Mat Fac Fac Was Fac Total Allies . | . . . . . . . . Largest Group . | . . . . . . . . Highest-Rated Group . | . . . . . . . . Highest-Rated Ally . | . . . . . . . . Total Orders . | . . . . . . . . Ally Attacks . | . . . . . . . . Total Damage . | . . . . . . . . Kills . | . . . . . . . . Allies Corrupted . | . . . . . . . . Allies Melted . | . . . . . . . . Intel | -11 -10 -9 -8 -7 -6 -6 -6 ------- Run | Yrd Mat Mat Mat Fac Fac Was Fac Active Infowar (turns) . | . . . . . . . . Robot Analysis Total 4 | . 2 2 . . . . . Derelict Logs Recovered . | . . . . . . . . Drone Launches . | . . . . . . . . Drone Recoveries . | . . . . . . . . Exploration | -11 -10 -9 -8 -7 -6 -6 -6 ------------- Run | Yrd Mat Mat Mat Fac Fac Was Fac Turns Passed 4784 | 64 492 577 654 352 1275 274 1096 Spaces Moved 2898 | 48 254 488 412 320 634 212 530 Core 6 | 6 . . . . . . . Treads 29 | . . . . . . . 29 Legs 1725 | 42 254 97 11 . 608 212 501 Wheels 609 | . . . 263 320 26 . . Hover 529 | . . 391 138 . . . . Flight . | . . . . . . . . Fastest Speed 44 | 50 120 48 44 100 100 120 120 Average Speed 108 | 113 131 81 89 100 120 120 122 Slowest Speed 260 | 120 190 190 260 100 260 120 240 Overloaded Moves . | . . . . . . . . Propulsion Burnouts . | . . . . . . . . Robots Hopped . | . . . . . . . . Potential Cave-ins . | . . . . . . . . Cave-ins Triggered . | . . . . . . . . Exploration Rate (%) 30 | 4 38 38 31 12 19 82 16 Regions Visited 7 Branch Regions . Pre-discovered Areas 2 | . 1 1 . . . . . Known Exits Taken . | . . . . . . . . Unknown Exits Taken 5 | 1 1 1 1 1 . . . Scrap Searched . | . . . . . . . . Spaces Dug . | . . . . . . . . Terrain Destroyed 198 | . 5 32 93 . . . 68 Melee . | . . . . . . . . Projectile 2 | . . . 2 . . . . AOE 196 | . 5 32 91 . . . 68 Terrain Rammed . | . . . . . . . . Walls Destroyed . | . . . . . . . . Machines Disabled . | . . . . . . . . Actions | -11 -10 -9 -8 -7 -6 -6 -6 --------- Run | Yrd Mat Mat Mat Fac Fac Was Fac Total 3832 | 54 348 576 604 348 904 240 758 Wait 187 | . 30 4 66 . 66 . 21 Move 2892 | 47 253 487 411 319 634 211 530 Hop . | . . . . . . . . Pick Up 76 | . 10 7 11 10 16 6 16 Fast Attach 66 | 6 6 6 10 2 18 3 15 Attach 40 | . . 3 8 2 9 1 17 Detach 6 | . 1 . . 2 . 1 2 Swap 89 | 1 5 11 16 4 19 4 29 Drop 98 | . 9 11 12 6 24 12 24 Fire 364 | . 33 47 69 3 110 . 102 Melee . | . . . . . . . . Ram 1 | . . . 1 . . . . Kick 6 | . 1 . . . 3 . 2 Crush . | . . . . . . . . Escape Stasis 5 | . . . . . 5 . . Rewire 2 | . . . . . . 2 . Trap . | . . . . . . . . Miscellaneous . | . . . . . . . . Route ------- -11/Scrapyard -10/Materials (discovered 3 exits: *Mat / [*Min x2]) -9/Materials -8/Materials -7/Factory -6/Factory -6/Waste -6/Factory History --------- Turn | Location | Event 11 | -11/Scrapyard | Discovered new exit (range 15) 65 | -11/Scrapyard | Entered Materials 325 | -10/Materials | Build established: Mutant 405 | -10/Materials | Discovered new exit (range 12) 474 | -10/Materials | Discovered new exit (range 13) 524 | -10/Materials | Discovered new exit (range 12) 557 | -10/Materials | Entered another Materials area 557 | -9/Materials | Evolved 2 slots: Propulsion x2 694 | -9/Materials | Build established: Scavenger-Mutant 933 | -9/Materials | Central database locked down 1110 | -9/Materials | Discovered new exit (range 5) 1134 | -9/Materials | Entered another Materials area 1134 | -8/Materials | Evolved 2 slots: Propulsion x1, Utility x1 1172 | -8/Materials | Repaired Imp. Hover Unit 1422 | -8/Materials | Lost 3 parts (2n1u) 1470 | -8/Materials | Destroyed 7 combat bots 1632 | -8/Materials | Core integrity fell below 50% 1657 | -8/Materials | Discovered new exit (range 16) 1683 | -8/Materials | System corruption reached 10% 1788 | -8/Materials | Entered Factory 1788 | -7/Factory | Evolved 2 slots: Propulsion x1, Utility x1 2109 | -7/Factory | Discovered new exit (range 16) 2140 | -7/Factory | Entered another Factory area 2140 | -6/Factory | Evolved 2 slots: Power x1, Weapon x1 2495 | -6/Factory | Build established: Scavenger-Gunner 3415 | -6/Factory | Sucked down chute 3415 | -6/Factory | Entered Waste 3415 | -6/Waste | The area was eerily silent 3639 | -6/Waste | Discovered new exit (range 13) 3689 | -6/Waste | Entered Factory 3743 | -6/Factory | Build established: Scavenger-Tank 4389 | -6/Factory | First assault squad dispatched 4571 | -6/Factory | Destroyed 13 combat bots 4578 | -6/Factory | Cargo convoy interrupted 4586 | -6/Factory | Core integrity fell below 50% 4645 | -6/Factory | Destroyed 10 combat bots 4679 | -6/Factory | Found Prototype Launcher 4689 | -6/Factory | Found Prototype Launcher 4690 | -6/Factory | Identified Hellfire Missile Launcher (x2) 4692 | -6/Factory | Garrison activated, responded to threat 4693 | -6/Factory | Core integrity fell below 20% 4707 | -6/Factory | Found Prototype Device 4707 | -6/Factory | Identified Exp. Thermal Shield 4719 | -6/Factory | Found Prototype Protection 4719 | -6/Factory | Identified Active Cooling Armor 4723 | -6/Factory | Lost 21 parts (3p10n4u4w) 4785 | -6/Factory | Destroyed by G-50 Soldier with Heavy Laser Last Messages --------------- 04765_ Acquired 105 matter. 04766_ The unstable cave ceiling collapses. 04766_ K-01 Serf collects debris. 04766_ U-05 Engineer lays Concrete. 04768_ Penetrated by Slug. 04768_ U-05 Engineer lays Concrete. 04769_ The unstable cave ceiling collapses. 04769_ U-05 Engineer lays Concrete. 04769_ U-05 Engineer builds a Door. 04771_ Slug penetrates Wall. 04773_ Acquired Corrupted Lgt. Angular Momentum Engine. 04773_ Integrated Corrupted Lgt. Angular Momentum Engine (+1). 04773_ U-05 Engineer lays Concrete. 04774_ Slug penetrates Wall. 04776_ H-66 Slayer destroyed. 04778_ The unstable cave ceiling collapses. 04781_ U-05 Engineer lays Concrete. 04782_ Acquired 59 matter. 04782_ R-10 Processor collects Carbon-fiber Leg. 04784_ Penetrated by Slug. Map ----- +----------------------------------------------------+ | # #???????# ???????????? | | [# % #???????# #????????????? | | # % ######### #????????????? | | ###% % #????????????? | | % !! #????????????? | | % % !!% """ #????????????? | | % T" #????????????? | | % % " #????????????? | | ###########+## ### = #????????????? | | #???# ! # % #????????????? | | #???# /# // #????????????? | | #???# # % ! ##???????????? | | #???# /[/R = % +???????????? | | #???# "" # ##???????????? | | #???# "" !#= #????????????? | | #???# """ # # "###""###+#######????????? | | #???? "" #= # " % #????????? | | ???# "" [ % !! """" #????????? | | #??# !! ""S"" ?????????? | | ??+ # "" "" #????????? | | #??# # # #????????? | | #??############# g # #????????? | | ###??????######### ##### ##########????????? | | ??????# [=[= ;;############???????????? | | ??????# = ! !% #[!% ????????? | | ??????# = g=@! ????????? | | ??????? ! # [ ????????? | | ??????? """" ## ############???????????? | | ??????????"" ##H#??????????????????????? | | ??????????"" """ """ # ??????????????????????? | | ??????????"" """S""" # ""??????????????????????? | | ?????????? # "G"?????????????????????? | | ?????????############### " "?????????????????????? | | ???????????????????????? ????????????????????? | | ???????????????????????? ?????????????????????? | | ???????????????????????##?##?????????????????????? | | ?????????????????????????????????????????????????? | | ?????????????????????????????????????????????????? | | ?????????????????????????????????????????????????? | | ?????????????????????????????????????????????????? | | ?????????????????????????????????????????????????? | | ?????????????????????????????????????????????????? | | ?????????????????????????????????????????????????? | | | | | | | | | | | | | | | +----------------------------------------------------+ Best States ------------- Heat Dissipation 97 Coolant Potential 65 Energy Generation 32 Energy Capacity 710 Matter Stores 300 Matter Capacity 300 Sight Range 16 Terrain Scan Density 10 Armor Coverage 900 Resistance: KI 20 Resistance: TH 30 Propulsion Shielding 66 Evasion (%) 56 Core Analysis 6 Recoil Reduction 4 Salvage Targeting 1 Offensive Hacking 10 Item Schematics ----------------- EM Pulse Cannon | -8/Materials | Scanalyzed Adv. Heat Sink | -8/Materials | Scanalyzed Imp. Hover Unit | -7/Factory | Scanalyzed Imp. Coolant Injector | -6/Factory | Hacked Hvy. Beamcaster | -6/Factory | Scanalyzed Robot Schematics ------------------ None Fabricated ------------ Nothing Repaired ---------- Imp. Hover Unit | 14% | -8/Materials Studied --------- Imp. Hover Unit | -8/Materials | Hacked Alien Tech Used ----------------- None Achievements -------------- None Challenges ------------ None Game ------ Seed ParticleScatterFacilitator Manual? 0 Play Time 01:19:17 Cumulative 209.4 hours Start 2025.11.04 @ 19:54:46 End 2025.11.04 @ 21:26:53 Sessions 1 Manual Loads 0 Difficulty Rogue Special Mode None Game No. 218 Rogue 214 Adventurer 3 Explorer 1 Win Type - Total 1 Types 1/0/0/0/0/0/0/0/0/0 Lore% 72 Gallery% 72 Achievement% 54 Wizard Run 0 Options --------- Layout 0 ASCII 0 Keyboard 0 Movement Mouse Keybinds 0 Fullscreen 2 Font 18/SmallcapsGlow Map View 76x50 Zoom Use 0% Tactical HUD 1 Map Filters NONE Filters NONE Steam 1 RUN: 9a8161ee-3d76-4a4b-a2cd-262d30a0af7c